fUST/lending_fUST_20250921
["ID","MTS","AMOUNT","RATE_DAILY","PERIOD"]
[386667672,1758455468262,-480.0,0.00022739,2]
[386667674,1758455468272,-1960.54,0.00022739,2]
[386667676,1758455468282,-480.0,0.00022739,2]
[386667678,1758455468291,-480.0,0.00022739,2]
[386667680,1758455468301,-840.34672957,0.00022739,2]
[386667682,1758455468317,-867.95327043,0.00022739,2]
[386667684,1758455468327,-793.7,0.00022739,2]
[386667686,1758455468337,-480.0,0.00022739,2]
[386667688,1758455468347,-246.17450783,0.00022739,2]
[386667691,1758455468358,-233.82549217,0.00022739,2]
[386667693,1758455468367,-218.17450784,0.00022739,2]
[386667708,1758455468518,-480.0,0.00019178,2]
[386667710,1758455468527,-609.85407415,0.00019178,2]
[386667712,1758455468537,-480.0,0.00019178,2]
[386667714,1758455468546,-487.67289912,0.00019178,2]
[386667716,1758455468557,-480.0,0.00019178,2]
[386667718,1758455468566,-480.0,0.00019452,2]
[386667720,1758455468576,-480.0,0.00019452,2]
[386667722,1758455468585,-56.32752711,0.00022739,2]
[386667724,1758455468595,-1034.45,0.00022739,2]
[386667726,1758455468604,-480.0,0.00022739,2]
[386667728,1758455468614,-350.0000076,0.00022739,2]
[386667731,1758455468630,-480.0,0.00019726,2]
[386667733,1758455468639,-129.9999924,0.00022739,2]
[386667735,1758455468649,-595.15,0.00022739,2]
[386667737,1758455468662,-480.0,0.00022739,2]
[386667739,1758455468672,-746.69,0.00022739,2]
[386667741,1758455468682,-480.0,0.00022739,2]
[386667743,1758455468692,-1331.21,0.00022739,2]
[386667745,1758455468702,-1041.37,0.00022739,2]
[386667747,1758455468711,-201.93469947,0.00022739,2]
[386668244,1758455473712,7440.15540954,0.00018968,2]
[386687589,1758455842302,-1200.0,0.00019064,2]
[386687590,1758455842331,-300.0,0.00019064,2]
[386687591,1758455842359,-371.0,0.00019064,2]
[386687592,1758455842387,-160.0,0.00019065,2]
[386687593,1758455842414,-151.0,0.00019065,2]
[386687594,1758455842441,-204.98919695,0.00019065,2]
[386687595,1758455842471,-151.46922687,0.00019065,2]
[386687596,1758455842497,-196.86888496,0.00019065,2]
[386687597,1758455842524,-151.0,0.00019065,2]
[386687598,1758455842553,-151.0,0.00019065,2]
[386687599,1758455842581,-157.76318649,0.00019065,2]
[386687600,1758455842611,-204.54977994,0.00019073,2]
[386687601,1758455842819,-3200.72944958,0.00019073,2]
[386687602,1758455842848,-500.0,0.00019076,2]
[386687603,1758455842880,-500.0,0.00019076,2]
[386687604,1758455842909,-500.0,0.00019076,2]
[386687605,1758455842937,-98.55110084,0.00019076,2]
[386687606,1758455843052,-401.44889916,0.00019076,2]
[386687607,1758455843083,-500.0,0.00019076,2]
[386687608,1758455843112,-500.0,0.00019076,2]
[386687609,1758455843138,-500.0,0.00019076,2]
[386687610,1758455843167,-205.3569664,0.00019076,2]
[386687611,1758455843197,-651.7923824,0.00019076,2]
[386687612,1758455843225,-500.0,0.00019076,2]
[386687613,1758455843254,-500.0,0.00019076,2]
[386687614,1758455843285,-500.0,0.00019076,2]
[386687615,1758455843314,-564.84026015,0.00019076,2]
[386687616,1758455852160,-500.0,0.00019076,2]
[386687617,1758455852192,-500.0,0.00019076,2]
[386687618,1758455852221,-500.0,0.00019076,2]
[386687619,1758455852259,-500.0,0.00019076,2]
[386687620,1758455852293,-500.0,0.00019076,2]
[386687621,1758455852324,-500.0,0.00019076,2]
[386687622,1758455852352,-500.0,0.00019076,2]
[386687623,1758455852384,-169.23766727,0.00019076,2]
[386687624,1758455852414,-277.32321389,0.00019076,2]
[386687625,1758455852442,-179.41446024,0.00019077,2]
[386687626,1758455862572,169.821984,0.00018205,2]
[386687627,1758455887260,-300.0,0.00019077,2]
[386687628,1758455887355,-7285.48121025,0.00019078,2]
[386687629,1758455887397,-3547.42846107,0.00019078,2]
[386687630,1758455887421,-2905.15307786,0.00019078,2]
[386687631,1758455907402,-533.50375921,0.000191,2]
[386687632,1758455913554,308.59146821,0.00019172,2]
[386687633,1758455913586,318.53586858,0.00019172,2]
[386687634,1758455943555,300.0,0.00019172,2]
[386687635,1758455947699,500.0,0.00019172,2]
[386687636,1758455982881,216.516845,0.00018342,2]
[386687637,1758455984748,216.31291214,0.00019078,2]
[386687638,1758455987115,2979.61932583,0.00019078,2]
[386687639,1758455987790,-500.0,0.00019173,2]
[386687640,1758455987819,-505.24288065,0.00019173,2]
[386687641,1758455987848,-500.0,0.00019173,2]
[386687642,1758455987878,-500.0,0.00019173,2]
[386687643,1758455987907,-500.0,0.00019173,2]
[386687644,1758455988121,-149.94781894,0.00019173,2]
[386687645,1758456002578,300.0,0.00019172,2]
[386687646,1758456003583,300.0,0.00019172,2]
[386687647,1758456003635,300.0,0.00019172,2]
[386687648,1758456004115,1200.0,0.00019172,2]
[386687650,1758456254733,161.0,0.00019,2]
[386687651,1758456255398,161.0,0.00019,2]
[386687652,1758456256207,161.0,0.00019,2]
[386687653,1758456262469,302.66710251,0.00018905,2]
[386687654,1758456280759,161.0,0.00019,2]
[386687655,1758456308632,163.0,0.00019,3]
[386687656,1758456322150,163.52952336,0.00019,3]
[386687659,1758456413236,-223.442919,0.00019078,2]
[386687660,1758456480225,153.94,0.00015984,2]
[386687661,1758456595248,1000.0,0.00018145,2]
[386687698,1758456631896,-2579.23654527,0.00019068,2]
[386687700,1758456631905,-169.11722212,0.00019068,2]
[386687702,1758456631915,-169.11722212,0.00019073,2]
[386687704,1758456631925,-234.0,0.00019076,2]
[386687706,1758456631934,-300.0,0.00019076,2]
[386687707,1758456631944,-300.0,0.00019076,2]
[386687709,1758456631954,-300.0,0.00019076,2]
[386687711,1758456631963,-1200.0,0.00019076,2]
[386687712,1758456631972,-1200.0,0.00019077,2]
[386687714,1758456631982,-500.0,0.00019077,2]
[386687716,1758456631991,-548.30452878,0.00019077,2]
[386687718,1758456632000,-500.0,0.00019077,2]
[386687720,1758456632009,-500.0,0.00019077,2]
[386687722,1758456632018,-173.05032972,0.00019078,2]
[386687724,1758456632027,-14380.26497481,0.00019078,2]
[386687726,1758456632037,-169.11722212,0.00019078,2]
[386687728,1758456632047,-1715.21,0.00019168,3]
[386687730,1758456632056,-857.61,0.00019168,3]
[386687732,1758456632065,-428.8,0.00019168,3]
[386687733,1758456632075,-214.4,0.00019168,3]
[386687735,1758456632088,-643.24,0.00019168,3]
[386687737,1758456632098,-160.0,0.0001917,2]
[386687739,1758456632107,-321.47426151,0.00019173,2]
[386687741,1758456632117,-506.04110339,0.00019173,2]
[386687742,1758456632127,-500.0,0.00019173,2]
[386687744,1758456632136,-480.0,0.00019178,2]
[386687745,1758456632145,-480.0,0.00019178,2]
[386687746,1758456632155,-520.0,0.00019178,3]
[386687747,1758456632166,-480.0,0.00019178,2]
[386687748,1758456632175,-480.0,0.00019178,2]
[386687749,1758456632184,-486.76687493,0.00019178,2]
[386687750,1758456632193,-489.11563356,0.00019178,2]
[386687751,1758456632203,-599.22714039,0.00019178,2]
[386687752,1758456632212,-482.63868831,0.00019178,2]
[386687753,1758456632222,-480.0,0.00019178,2]
[386687754,1758456632231,-482.96535048,0.00019178,2]
[386687755,1758456632240,-480.0,0.00019178,2]
[386687756,1758456632249,-482.80728571,0.00019178,2]
[386687757,1758456632258,-480.0,0.00019178,2]
[386687758,1758456632267,-480.0,0.00019178,2]
[386687759,1758456632276,-482.96352197,0.00019178,2]
[386687760,1758456632286,-485.39623922,0.00019178,2]
[386687761,1758456632296,-480.0,0.00019178,2]
[386687762,1758456632305,-480.0,0.00019178,2]
[386687763,1758456632315,-480.0,0.00019178,2]
[386687764,1758456632324,-483.4784927,0.00019178,2]
[386687765,1758456632333,-480.0,0.00019178,2]
[386687766,1758456632343,-484.77757497,0.00019178,2]
[386687767,1758456632353,-483.71160833,0.00019178,2]
[386687768,1758456632362,-488.12387711,0.00019178,2]
[386687769,1758456632371,-480.0,0.00019178,2]
[386687770,1758456632380,-480.0,0.00019178,2]
[386687771,1758456632389,-480.0,0.00019178,2]
[386687772,1758456632400,-486.95382895,0.00019178,2]
[386687773,1758456632409,-480.0,0.00019178,2]
[386687774,1758456632418,-485.76081227,0.00019178,2]
[386687775,1758456632427,-252.51594518,0.00019178,2]
[386687776,1758456632436,-480.0,0.00019178,2]
[386687777,1758456632445,-480.0,0.00019178,2]
[386687778,1758456632454,-480.0,0.00019178,2]
[386687779,1758456632463,-480.0,0.00019178,2]
[386687780,1758456632473,-482.03818111,0.00019178,2]
[386687781,1758456632482,-480.0,0.00019178,2]
[386687782,1758456632491,-480.0,0.00019178,2]
[386687783,1758456632500,-480.0,0.00019178,2]
[386687784,1758456632509,-480.0,0.00019178,2]
[386687785,1758456632518,-546.65442753,0.00019178,2]
[386687786,1758456632528,-480.0,0.00019178,2]
[386687787,1758456632538,-501.34613332,0.00019178,2]
[386687788,1758456632547,-480.0,0.00019178,2]
[386687789,1758456632556,-480.0,0.00019178,2]
[386687790,1758456632566,-444.89586175,0.00019178,2]
[386687791,1758456632576,-481.65020464,0.00019178,2]
[386687792,1758456632585,-480.0,0.00019178,2]
[386687793,1758456632594,-480.0,0.00019178,2]
[386687794,1758456632604,-480.0,0.00019178,2]
[386687795,1758456632613,-480.0,0.00019178,2]
[386687796,1758456632623,-480.0,0.00019178,2]
[386687797,1758456632633,-480.0,0.00019178,2]
[386687798,1758456632643,-480.0,0.00019178,2]
[386687799,1758456632652,-496.58980733,0.00019178,2]
[386687800,1758456632661,-480.0,0.00019178,2]
[386687801,1758456632671,-480.0,0.00019178,2]
[386687802,1758456632680,-480.0,0.00019178,2]
[386687803,1758456632689,-480.0,0.00019178,2]
[386687804,1758456632698,-480.0,0.00019178,2]
[386687805,1758456632707,-480.0,0.00019178,2]
[386687806,1758456632717,-480.0,0.00019178,2]
[386687807,1758456632725,-480.0,0.00019178,2]
[386687808,1758456632735,-480.0,0.00019178,2]
[386687809,1758456632744,-480.0,0.00019178,2]
[386687810,1758456632753,-480.0,0.00019178,2]
[386687811,1758456632762,-480.0,0.00019178,2]
[386687812,1758456632771,-480.0,0.00019178,2]
[386687813,1758456632780,-480.0,0.00019178,2]
[386687814,1758456632790,-480.0,0.00019178,2]
[386687815,1758456632800,-480.0,0.00019178,2]
[386687816,1758456632809,-480.0,0.00019178,2]
[386687817,1758456632818,-480.0,0.00019178,2]
[386687818,1758456632827,-480.0,0.00019178,2]
[386687819,1758456632838,-480.0,0.00019178,2]
[386687820,1758456632847,-483.67562855,0.00019178,2]
[386687821,1758456632856,-555.06715789,0.00019178,2]
[386687822,1758456632866,-480.0,0.00019178,2]
[386687823,1758456632875,-480.0,0.00019178,2]
[386687824,1758456632885,-480.0,0.00019178,2]
[386687825,1758456632894,-480.0,0.00019178,2]
[386687826,1758456632904,-480.0,0.00019178,2]
[386687827,1758456632914,-480.0,0.00019178,2]
[386687828,1758456632923,-480.0,0.00019178,2]
[386687829,1758456632933,-480.0,0.00019178,2]
[386687830,1758456632942,-480.0,0.00019178,2]
[386687831,1758456632952,-480.0,0.00019178,2]
[386687832,1758456632961,-317.0786928,0.00019178,2]
[386687833,1758456632971,-480.0,0.00019178,2]
[386687834,1758456632981,-480.0,0.00019178,2]
[386687835,1758456632999,-480.0,0.00019178,2]
[386687836,1758456633019,-480.0,0.00019178,2]
[386687837,1758456633033,-480.0,0.00019178,2]
[386687838,1758456633042,-480.0,0.00019178,2]
[386687839,1758456633051,-480.0,0.00019178,2]
[386687840,1758456633061,-480.0,0.00019178,2]
[386687841,1758456633071,-480.0,0.00019178,2]
[386687842,1758456633081,-480.0,0.00019178,2]
[386687843,1758456633095,-480.0,0.00019178,2]
[386687844,1758456633105,-480.0,0.00019178,2]
[386687845,1758456633115,-480.0,0.00019178,2]
[386687846,1758456633125,-485.28201622,0.00019178,2]
[386687847,1758456633135,-480.0,0.00019178,2]
[386687848,1758456633144,-480.0,0.00019178,2]
[386687849,1758456633153,-480.0,0.00019178,2]
[386687850,1758456633163,-480.0,0.00019178,2]
[386687851,1758456633172,-480.99319864,0.00019178,2]
[386687852,1758456633183,-480.0,0.00019178,2]
[386687853,1758456633192,-452.04966293,0.00019178,2]
[386687854,1758456633202,-486.64763423,0.00019178,2]
[386687855,1758456633212,-480.0,0.00019178,2]
[386687856,1758456633221,-480.0,0.00019178,2]
[386687857,1758456633231,-480.0,0.00019178,2]
[386687858,1758456633241,-480.0,0.00019178,2]
[386687859,1758456633250,-482.70692241,0.00019178,2]
[386687860,1758456633260,-480.0,0.00019178,2]
[386687861,1758456633270,-480.0,0.00019178,2]
[386687862,1758456633279,-480.0,0.00019178,2]
[386687863,1758456633289,-480.0,0.00019178,2]
[386687864,1758456633298,-480.0,0.00019178,2]
[386687865,1758456633307,-480.0,0.00019178,2]
[386687866,1758456633317,-480.0,0.00019178,2]
[386687867,1758456633326,-480.0,0.00019178,2]
[386687868,1758456633336,-480.0,0.00019178,2]
[386687869,1758456633345,-480.0,0.00019178,2]
[386687870,1758456633354,-482.3809411,0.00019178,2]
[386687871,1758456633363,-480.0,0.00019178,2]
[386687872,1758456633372,-480.0,0.00019178,2]
[386687873,1758456633381,-480.0,0.00019178,2]
[386687874,1758456633391,-486.74127188,0.00019178,2]
[386687875,1758456633400,-480.0,0.00019178,2]
[386687876,1758456633410,-480.0,0.00019178,2]
[386687877,1758456633419,-480.0,0.00019178,2]
[386687878,1758456633429,-480.0,0.00019178,2]
[386687879,1758456633438,-480.0,0.00019178,2]
[386687880,1758456633448,-480.0,0.00019178,2]
[386687881,1758456633459,-480.0,0.00019178,2]
[386687882,1758456633469,-482.52437463,0.00019178,2]
[386687883,1758456633479,-480.0,0.00019178,2]
[386687884,1758456633488,-480.0,0.00019178,2]
[386687885,1758456633498,-480.0,0.00019178,2]
[386687886,1758456633508,-480.0,0.00019178,2]
[386687887,1758456633518,-480.0,0.00019178,2]
[386687888,1758456633527,-482.622133,0.00019178,2]
[386687889,1758456633538,-480.0,0.00019178,2]
[386687890,1758456633547,-480.0,0.00019178,2]
[386687891,1758456633557,-202.88819794,0.00019178,2]
[386687892,1758456633566,-480.0,0.00019178,2]
[386687893,1758456633576,-480.0,0.00019178,2]
[386687894,1758456633586,-151.0,0.00019178,2]
[386687895,1758456633595,-481.28991271,0.00019178,2]
[386687896,1758456633605,-481.63648399,0.00019178,2]
[386687897,1758456633614,-151.0,0.00019178,2]
[386687898,1758456633624,-480.0,0.00019178,2]
[386687899,1758456633633,-480.0,0.00019178,2]
[386687900,1758456633643,-480.0,0.00019178,2]
[386687901,1758456633652,-480.0,0.00019178,2]
[386687902,1758456633662,-480.0,0.00019178,2]
[386687903,1758456633672,-151.0,0.00019178,2]
[386687904,1758456633682,-480.0,0.00019178,2]
[386687905,1758456633692,-151.0,0.00019178,2]
[386687906,1758456633702,-480.0,0.00019178,2]
[386687907,1758456633712,-480.0,0.00019178,2]
[386687908,1758456633722,-480.0,0.00019178,2]
[386687909,1758456633731,-497.41843964,0.00019178,2]
[386687910,1758456633741,-205.77256121,0.00019178,2]
[386687911,1758456633750,-481.91932293,0.00019178,2]
[386687912,1758456633760,-179.06020794,0.00019178,2]
[386687913,1758456633769,-480.0,0.00019178,2]
[386687914,1758456633779,-480.0,0.00019178,2]
[386687915,1758456633789,-480.0,0.00019178,2]
[386687916,1758456633799,-480.0,0.00019178,2]
[386687917,1758456633808,-480.0,0.00019178,2]
[386687918,1758456633818,-480.0,0.00019178,2]
[386687919,1758456633827,-480.0,0.00019178,2]
[386687920,1758456633838,-480.0,0.00019178,2]
[386687921,1758456633852,-480.0,0.00019178,2]
[386687922,1758456633861,-480.0,0.00019178,2]
[386687923,1758456633873,-482.96370396,0.00019178,2]
[386687924,1758456633882,-480.0,0.00019178,2]
[386687925,1758456633892,-422.65594471,0.00019178,2]
[386687926,1758456633901,-480.0,0.00019178,2]
[386687927,1758456633911,-480.0,0.00019178,2]
[386687928,1758456633920,-480.0,0.00019178,2]
[386687929,1758456633930,-480.0,0.00019178,2]
[386687930,1758456633939,-480.0,0.00019178,2]
[386687931,1758456633949,-485.49821744,0.00019178,2]
[386687932,1758456633959,-553.3194877,0.00019178,2]
[386687933,1758456633969,-480.0,0.00019178,2]
[386687934,1758456633978,-480.0,0.00019178,2]
[386687935,1758456633988,-480.0,0.00019178,2]
[386687936,1758456633997,-480.0,0.00019178,2]
[386687937,1758456634007,-480.0,0.00019178,2]
[386687938,1758456634016,-468.573118,0.00019178,2]
[386687939,1758456634025,-480.0,0.00019178,2]
[386687940,1758456634035,-480.0,0.00019178,2]
[386687941,1758456634044,-484.11434951,0.00019178,2]
[386687942,1758456634053,-480.0,0.00019178,2]
[386687943,1758456634063,-530.15598549,0.00019178,2]
[386687944,1758456634072,-480.0,0.00019178,2]
[386687945,1758456634081,-480.0,0.00019178,2]
[386687946,1758456634095,-974.51,0.00019178,2]
[386687947,1758456634105,-480.0,0.00019178,2]
[386687948,1758456634114,-480.0,0.00019178,2]
[386687949,1758456634123,-480.0,0.00019178,2]
[386687950,1758456634134,-480.0,0.00019178,2]
[386687951,1758456634143,-480.0,0.00019178,2]
[386687952,1758456634152,-480.0,0.00019178,2]
[386687953,1758456634162,-492.88536601,0.00019178,2]
[386687954,1758456634172,-480.0,0.00019178,2]
[386687955,1758456634181,-480.0,0.00019178,2]
[386687956,1758456634190,-484.45625125,0.00019178,2]
[386687957,1758456634199,-488.43355629,0.00019178,2]
[386687958,1758456634209,-480.0,0.00019178,2]
[386687959,1758456634218,-480.0,0.00019178,2]
[386687960,1758456634228,-481.72642853,0.00019178,2]
[386687961,1758456634238,-480.0,0.00019178,2]
[386687962,1758456634247,-480.0,0.00019178,2]
[386687963,1758456634257,-484.73116387,0.00019178,2]
[386687964,1758456634266,-486.65075893,0.00019178,2]
[386687965,1758456634276,-480.0,0.00019178,2]
[386687966,1758456634286,-446.26169774,0.00019178,2]
[386687967,1758456634295,-480.74535063,0.00019178,2]
[386687968,1758456634305,-416.62783752,0.00019178,2]
[386687969,1758456634314,-480.0,0.00019178,2]
[386687970,1758456634324,-480.0,0.00019178,2]
[386687971,1758456634333,-482.0518681,0.00019178,2]
[386687972,1758456634342,-480.0,0.00019178,2]
[386687973,1758456634352,-487.69071137,0.00019178,2]
[386687974,1758456634361,-480.0,0.00019178,2]
[386687975,1758456634371,-480.0,0.00019178,2]
[386687976,1758456634380,-480.0,0.00019178,2]
[386687977,1758456634390,-480.0,0.00019178,2]
[386687978,1758456634400,-480.0,0.00019178,2]
[386687979,1758456634409,-480.0,0.00019178,2]
[386687980,1758456634418,-481.856318,0.00019178,2]
[386687981,1758456634428,-480.0,0.00019178,2]
[386687982,1758456634438,-480.0,0.00019178,2]
[386687983,1758456634447,-480.0,0.00019178,2]
[386687984,1758456634457,-480.0,0.00019178,2]
[386687985,1758456634467,-480.0,0.00019178,2]
[386687986,1758456634476,-480.0,0.00019178,2]
[386687987,1758456634485,-542.23235978,0.00019178,2]
[386687988,1758456634494,-487.97803807,0.00019178,2]
[386687989,1758456634503,-480.0,0.00019178,2]
[386687990,1758456634512,-480.0,0.00019178,2]
[386687991,1758456634521,-265.81003938,0.00019178,2]
[386687992,1758456634530,-480.0,0.00019178,2]
[386687993,1758456634539,-480.0,0.00019178,2]
[386687994,1758456634549,-480.0,0.00019178,2]
[386687995,1758456634558,-480.0,0.00019178,2]
[386687996,1758456634567,-480.0,0.00019178,2]
[386687997,1758456634576,-480.0,0.00019178,2]
[386687998,1758456634586,-480.0,0.00019178,2]
[386687999,1758456634595,-480.0,0.00019178,2]
[386688000,1758456634604,-480.0,0.00019178,2]
[386688001,1758456634614,-480.0,0.00019178,2]
[386688002,1758456634623,-480.0,0.00019178,2]
[386688003,1758456634632,-480.0,0.00019178,2]
[386688004,1758456634641,-480.0,0.00019178,2]
[386688005,1758456634650,-514.12311274,0.00019178,2]
[386688006,1758456634659,-480.0,0.00019178,2]
[386688007,1758456634669,-480.0,0.00019178,2]
[386688008,1758456634678,-480.0,0.00019178,2]
[386688009,1758456634688,-480.0,0.00019178,2]
[386688010,1758456634697,-480.0,0.00019178,2]
[386688011,1758456634706,-480.0,0.00019178,2]
[386688012,1758456634726,-480.0,0.00019178,2]
[386688013,1758456634735,-480.0,0.00019178,2]
[386688014,1758456634744,-480.0,0.00019178,2]
[386688015,1758456634753,-480.0,0.00019178,2]
[386688016,1758456634763,-480.0,0.00019178,2]
[386688017,1758456634772,-480.0,0.00019178,2]
[386688018,1758456634782,-480.0,0.00019178,2]
[386688019,1758456634791,-480.0,0.00019178,2]
[386688020,1758456634801,-480.0,0.00019178,2]
[386688021,1758456634811,-480.0,0.00019178,2]
[386688022,1758456634821,-480.0,0.00019178,2]
[386688023,1758456634830,-480.0,0.00019178,2]
[386688024,1758456634839,-480.0,0.00019178,2]
[386688025,1758456634848,-480.0,0.00019178,2]
[386688026,1758456634858,-480.0,0.00019178,2]
[386688027,1758456634868,-480.0,0.00019178,2]
[386688028,1758456634877,-480.0,0.00019178,2]
[386688029,1758456634887,-480.0,0.00019178,2]
[386688030,1758456634896,-480.0,0.00019178,2]
[386688031,1758456634905,-480.0,0.00019178,2]
[386688032,1758456634915,-482.29672076,0.00019178,2]
[386688033,1758456634923,-502.18894731,0.00019178,2]
[386688034,1758456634933,-480.0,0.00019178,2]
[386688035,1758456634944,-599.13,0.00019178,2]
[386688036,1758456634953,-480.0,0.00019178,2]
[386688037,1758456634964,-480.0,0.00019178,2]
[386688038,1758456634973,-480.0,0.00019178,2]
[386688039,1758456634983,-481.78855305,0.00019178,2]
[386688040,1758456634992,-480.0,0.00019178,2]
[386688041,1758456635002,-480.0,0.00019178,2]
[386688042,1758456635011,-480.0,0.00019178,2]
[386688043,1758456635020,-480.0,0.00019178,2]
[386688044,1758456635029,-480.0,0.00019178,2]
[386688045,1758456635039,-480.0,0.00019178,2]
[386688046,1758456635048,-480.0,0.00019178,2]
[386688047,1758456635058,-480.0,0.00019178,2]
[386688048,1758456635069,-480.0,0.00019178,2]
[386688049,1758456635078,-480.0,0.00019178,2]
[386688050,1758456635249,-489.11128082,0.00019178,2]
[386688051,1758456635260,-480.0,0.00019178,2]
[386688052,1758456635270,-480.0,0.00019178,2]
[386688053,1758456635278,-480.0,0.00019178,2]
[386688054,1758456635288,-480.0,0.00019178,2]
[386688055,1758456635297,-480.0,0.00019178,2]
[386688056,1758456635306,-480.0,0.00019178,2]
[386688057,1758456635315,-480.0,0.00019178,2]
[386688058,1758456635324,-480.0,0.00019178,2]
[386688059,1758456635333,-480.0,0.00019178,2]
[386688060,1758456635342,-200.24827857,0.00019178,2]
[386688061,1758456635351,-480.0,0.00019178,2]
[386688062,1758456635361,-387.19471593,0.00019178,2]
[386688063,1758456635370,-306.60501693,0.00019178,2]
[386688064,1758456635379,-480.0,0.00019178,2]
[386688065,1758456635388,-480.0,0.00019178,2]
[386688066,1758456635398,-481.43190396,0.00019178,2]
[386688067,1758456635406,-355.11744659,0.00019178,2]
[386688068,1758456635429,-124.88255341,0.00019178,2]
[386688069,1758456635438,-480.56793342,0.00019178,2]
[386688070,1758456635447,-480.0,0.00019178,2]
[386688071,1758456635456,-480.0,0.00019178,2]
[386688072,1758456635465,-480.0,0.00019178,2]
[386688073,1758456635474,-480.0,0.00019178,2]
[386688074,1758456635483,-480.0,0.00019178,2]
[386688075,1758456635492,-480.0,0.00019178,2]
[386688076,1758456635501,-74.88300617,0.00019178,2]
[386688077,1758456635512,-405.11699383,0.00019178,2]
[386688078,1758456635522,-484.61020092,0.00019178,2]
[386688079,1758456635531,-481.88235915,0.00019178,2]
[386688080,1758456635541,-480.0,0.00019178,2]
[386688081,1758456635550,-480.0,0.00019178,2]
[386688082,1758456635560,-461.76055794,0.00019178,2]
[386688083,1758456635570,-480.0,0.00019178,2]
[386688084,1758456635584,-480.0,0.00019178,2]
[386688085,1758456635594,-480.0,0.00019178,2]
[386688086,1758456635603,-480.0,0.00019178,2]
[386688087,1758456635612,-480.0,0.00019178,2]
[386688088,1758456635621,-480.0,0.00019178,2]
[386688089,1758456635630,-480.0,0.00019178,2]
[386688090,1758456635640,-480.0,0.00019178,2]
[386688091,1758456635649,-339.73081647,0.00019178,2]
[386688092,1758456635658,-480.0,0.00019178,2]
[386688093,1758456635667,-484.64621898,0.00019178,2]
[386688094,1758456635677,-323.56322325,0.00019178,2]
[386688095,1758456635689,-156.43677675,0.00019178,2]
[386688096,1758456635699,-480.0,0.00019178,2]
[386688097,1758456635711,-480.0,0.00019178,2]
[386688098,1758456635720,-480.0,0.00019178,2]
[386688099,1758456635729,-480.0,0.00019178,2]
[386688100,1758456635738,-480.0,0.00019178,2]
[386688101,1758456635747,-480.0,0.00019178,2]
[386688102,1758456635757,-480.0,0.00019178,2]
[386688103,1758456635766,-480.0,0.00019178,2]
[386688104,1758456635775,-482.13975278,0.00019178,2]
[386688105,1758456635784,-500.0,0.00019178,2]
[386688106,1758456635793,-160.49063579,0.00019178,2]
[386688107,1758456635803,-666.54,0.00019178,2]
[386688108,1758456635812,-480.0,0.00019178,2]
[386688109,1758456635821,-494.12268187,0.00019178,2]
[386688110,1758456635830,-480.0,0.00019178,2]
[386688111,1758456635840,-500.0,0.00019178,2]
[386688112,1758456635849,-480.0,0.00019178,2]
[386688113,1758456635859,-500.0,0.00019178,2]
[386688114,1758456635868,-480.0,0.00019178,2]
[386688115,1758456635877,-151.0,0.00019178,2]
[386688116,1758456635886,-480.0,0.00019178,2]